Cogmind - Beta 14 @@@ ROGUE MODE // 2025.01.07 @ 21:32:16 Player: jumpy Result: Self-destructed Performance ------------- Evolutions (2) 1000 Regions Visited (4) 800 Robots Destroyed (28) 140 Value Destroyed (482) 482 Prototype IDs (0) 0 Alien Tech Used (0) 0 Bonus (222) 222 TOTAL SCORE: 2644 Bonus ------- High Alert Combat Kills 19 Follower Combat Kills 203 Cogmind --------- Core Integrity 516/550 Matter 244/300 Energy 275/275 System Corruption 0% Temperature Cool (0) Movement Rolling (90) Location -8/Materials Parts ------- > --- POWER (1) -------- Deuterium Engine > --- PROPULSION (4) --- Wheel Compact Wheel > --- UTILITY (4) ------ Medium Storage Unit Improved Terrain Scanner Terrain Scan Processor > --- WEAPON (2) ------- Particle Cannon Scythe > --- INVENTORY (10) --- Light Treads Heat Sink Improved Terrain Scanner Seismic Detector Seismic Detector Insulated Plating EM Pulse Gun Light Assault Rifle Flak Cannon Peak State ------------ > --- POWER ------------ Deuterium Engine > --- PROPULSION ------- Wheel Compact Wheel > --- UTILITY ---------- Medium Storage Unit Improved Terrain Scanner Terrain Scan Processor Light Armor Plating > --- WEAPON ----------- Particle Cannon Scythe > --- INVENTORY -------- Light Treads Heat Sink Improved Terrain Scanner Seismic Detector Seismic Detector Insulated Plating EM Pulse Gun Light Assault Rifle Flak Cannon [Rating: 18] Favorites ----------- Power Deuterium Engine Engine Deuterium Engine Propulsion Light Treads Treads Light Treads Wheel Wheel Utility Seismic Detector Device Seismic Detector Storage Medium Storage Unit Processor Terrain Scan Processor Protection Light Armor Plating Weapon Small Laser Energy Gun Small Laser Energy Cannon Particle Cannon Ballistic Gun Light Assault Rifle Launcher Grenade Launcher Slashing Weapon Scythe Build | -11 -10 -10 -9 -8 ------- Run | Yrd Mat Min Mat Mat Slots Evolved 4 | . . . 2 2 Power . | . . . . . Propulsion 2 | . . . . 2 Utility 2 | . . . 2 . Weapon . | . . . . . Parts Attached 24 | 7 . . 15 2 Power 3 | 1 . . 2 . Engine 3 | 1 . . 2 . Core . | . . . . . Reactor . | . . . . . Propulsion 6 | 2 . . 4 . Treads 4 | 2 . . 2 . Leg . | . . . . . Wheel 2 | . . . 2 . Hover . | . . . . . Flight . | . . . . . Utility 8 | 2 . . 6 . Device 4 | 1 . . 3 . Storage 2 | 1 . . 1 . Processor 1 | . . . 1 . Hackware . | . . . . . Protection 1 | . . . 1 . Artifact . | . . . . . Weapon 7 | 2 . . 3 2 Energy Gun 3 | 2 . . 1 . Energy Cannon 1 | . . . . 1 Ballistic Gun 1 | . . . 1 . Ballistic Cannon . | . . . . . Launcher 1 | . . . 1 . Special Weapon . | . . . . . Impact Weapon . | . . . . . Slashing Weapon 1 | . . . . 1 Piercing Weapon . | . . . . . Special Melee Weapon . | . . . . . Unidentified Prototypes . | . . . . . Parts Lost 10 | . . . 9 1 Power 1 | . . . 1 . Propulsion 3 | . . . 3 . Utility 3 | . . . 2 1 Weapon 3 | . . . 3 . Highest Loss Streak 7 | . . . 7 1 To Critical Strikes . | . . . . . Average Slot Usage (%) 91 | . 100 100 89 78 Engine 11 | . 14 14 10 9 Treads 19 | . 28 28 18 . Wheel 2 | . . . . 18 Device 19 | . 14 14 23 9 Storage 11 | . 14 14 11 9 Processor 2 | . . . 3 9 Protection 1 | . . . 1 6 Energy Gun 20 | . 28 28 19 5 Peak Build Rating 18 | 8 8 8 15 18 Average Rating 10 | 6 8 8 12 16 On Entrance 7 | . 8 8 8 14 Naked Turns . | . . . . . Heaviest Build 29 | 13 13 13 26 29 Greatest Support 40 | 40 40 40 40 26 Greatest Overweight (x) 8 | 3 . . 8 1 Average Overweight (x) . | . . . . . Largest Inventory Capacity 10 | 8 8 8 10 10 Average Capacity 9 | 7 8 8 9 10 Most Carried 9 | 6 7 7 8 9 Average Carried 6 | 3 6 7 6 7 Final Capacity 10 | 8 8 8 10 10 Final Carried 9 | 6 7 7 5 9 Class Distribution -------------------- 90% | Mutant 9% | Scavenger-Mutant Dominant Class ---------------- Mutant | -10/Materials Mutant | -10/Mines Mutant | -9/Materials Mutant | -8/Materials Resources | -11 -10 -10 -9 -8 ----------- Run | Yrd Mat Min Mat Mat Matter Collected 402 | 270 . . 122 10 Remotely . | . . . . . Salvage Created 686 | 214 . . 402 70 Parts 57 | 18 . . 35 4 Haulers Intercepted . | . . . . . Recyclers Shooed . | . . . . . Parts Field Recycled . | . . . . . Retrieved Matter . | . . . . . Parts Self-Destructed . | . . . . . Prevented . | . . . . . Kills | -11 -10 -10 -9 -8 ------- Run | Yrd Mat Min Mat Mat Combat Hostiles Destroyed 16 | . . . 14 2 Melee 2 | . . . . 2 Guns 10 | . . . 10 . AOE 4 | . . . 4 . Classes Destroyed 8 | 2 . . 6 . Worker 1 | . . . 1 . Builder 1 | . . . 1 . Tunneler 8 | 7 . . 1 . Recycler 1 | 1 . . . . Watcher 1 | . . . 1 . Swarmer 8 | . . . 7 1 Grunt 5 | . . . 4 1 Sentry 3 | . . . 3 . Best Kill Streak 6 | 4 . . 6 2 Combat Bots Only 5 | . . . 5 2 Max Kills in Single Turn 2 | 1 . . 2 1 Gunslinging . | . . . . . Exploded 2 | . . . 2 . Melee 1 | . . . . 1 Uniques/NPCs Destroyed . | . . . . . Combat | -11 -10 -10 -9 -8 -------- Run | Yrd Mat Min Mat Mat Hostile Shots Fired 171 | . . . 154 17 Missed 44 | . . . 39 5 Damage Taken 1389 | . . . 1229 160 Core 283 | . . . 249 34 Absorbed by Shields . | . . . . . Core Remaining (%) 79 | 100 . 100 37 . Volleys Fired 62 | 15 2 . 45 . Largest 2 | 2 2 . 2 . Hottest 80 | 80 80 . 80 . Shots Fired 118 | 30 4 . 84 . Gun 115 | 30 4 . 81 . Cannon . | . . . . . Launcher 3 | . . . 3 . Special . | . . . . . Kinetic 4 | . . . 4 . Thermal 101 | 30 4 . 67 . Explosive 3 | . . . 3 . Electromagnetic 10 | . . . 10 . Robot Hit Streak 13 | 6 2 . 13 . Robot Miss Streak 3 | 3 2 . 2 . Penetration Max . | . . . . . Secondary Targets . | . . . . . Shots Hit Robots 85 | 17 2 . 60 6 Core Hits 44 | 9 . . 33 2 Critical Kills . | . . . . . Critical Parts Destroyed . | . . . . . Critical Strikes 1 | . . . . 1 Sever 1 | . . . . 1 Melee Attacks 8 | . . . . 8 Impact . | . . . . . Slashing 8 | . . . . 8 Piercing . | . . . . . Sneak Attacks . | . . . . . Combat Hostiles . | . . . . . Follow-up Attacks . | . . . . . Damage Inflicted 1405 | 206 21 . 993 185 Guns 850 | 206 21 . 623 . Cannons . | . . . . . Explosions 339 | . . . 339 . Melee 185 | . . . . 185 Ramming 31 | . . . 31 . Kinetic 7 | . . . 7 . Thermal 774 | 206 21 . 547 . Explosive 339 | . . . 339 . Electromagnetic 69 | . . . 69 . Impact . | . . . . . Slashing 185 | . . . . 185 Piercing . | . . . . . Highest Corruption 2 | . . . 2 . Average Corruption 2 | . . . 2 . Corruption Purged . | . . . . . Corruption Blocked . | . . . . . Effects 1 | . . . 1 . Matter Fused 1 | . . . 1 . Overload Shots . | . . . . . Overflow Damage 22 | . . . 22 . Projectiles . | . . . . . Explosions 22 | . . . 22 . Melee . | . . . . . Knockbacks . | . . . . . Impact . | . . . . . Kinetic . | . . . . . Secondary . | . . . . . Self-Inflicted Damage 84 | . . . 84 . Shots 3 | . . . 3 . Rammed 13 | . . . 13 . Targets Rammed 14 | . . . 14 . Kicked . | . . . . . Crushed 1 | . . . 1 . Highest Temperature 84 | 56 36 . 84 2 Average Temperature 26 | 23 20 . 29 2 Received Heat Transfer 369 | . . . 306 63 Siege Activations . | . . . . . Robots Corrupted . | . . . . . Combat Hostiles . | . . . . . Parts Fried . | . . . . . Impact Corruptions . | . . . . . Robots Melted . | . . . . . Combat Hostiles . | . . . . . Parts Melted 2 | 1 . . 1 . Heat Transferred 1775 | 475 50 . 1250 . Parts Sabotaged . | . . . . . Parts Stolen . | . . . . . Parts Stripped . | . . . . . Power Chain Reactions . | . . . . . Alert | -11 -10 -10 -9 -8 ------- Run | Yrd Mat Min Mat Mat Peak Influence 436 | 40 41 15 436 229 Initial 139 | . 26 15 5 139 Average 85 | 15 30 15 122 148 Maximum Alert Level 2 | . . . 2 1 Low Security (%) 85 | 100 100 100 76 87 Level 1 12 | . . . 20 12 Level 2 1 | . . . 3 . Level 3 . | . . . . . Level 4 . | . . . . . Level 5 . | . . . . . High Security . | . . . . . Max Security . | . . . . . Squads Dispatched 2 | . . . 2 . Investigation . | . . . . . Extermination . | . . . . . Reinforcement 2 | . . . 2 . Assault . | . . . . . Garrison . | . . . . . Intercept . | . . . . . Searches Triggered . | . . . . . Construction Impeded . | . . . . . Haulers Reinforced . | . . . . . Active Scanning Responses . | . . . . . Cargo Convoy Interrupts . | . . . . . Stealth | -11 -10 -10 -9 -8 --------- Run | Yrd Mat Min Mat Mat Distress Signals 1 | . . . 1 . Communications Jammed . | . . . . . Distress Signals . | . . . . . Times Spotted 42 | . 1 . 30 11 Peak Tracking Total 8 | . 1 . 7 8 Tactical Retreats 6 | . . . 5 1 Traps | -11 -10 -10 -9 -8 ------- Run | Yrd Mat Min Mat Mat Traps Triggered 1 | . . . 1 . Indirectly . | . . . . . Trap Hack Attempts . | . . . . . Triggered . | . . . . . Disarmed . | . . . . . Reprogrammed . | . . . . . Reused . | . . . . . Traps Extracted . | . . . . . Installed . | . . . . . Triggered . | . . . . . Machines | -11 -10 -10 -9 -8 ---------- Run | Yrd Mat Min Mat Mat Machines Disabled . | . . . . . Max in Single Turn . | . . . . . Machines Repaired . | . . . . . Machines Dismantled . | . . . . . Machines Sabotaged . | . . . . . Overloaded Fab Kills . | . . . . . Hacking | -11 -10 -10 -9 -8 --------- Run | Yrd Mat Min Mat Mat Machines Accessed . | . . . . . Terminals . | . . . . . Fabricators . | . . . . . Repair Stations . | . . . . . Recycling Units . | . . . . . Scanalyzers . | . . . . . Garrison Access . | . . . . . Total Hacks . | . . . . . Successful . | . . . . . Failed . | . . . . . Catastrophic . | . . . . . Database Lockouts . | . . . . . Manual . | . . . . . Terminals . | . . . . . Fabricators . | . . . . . Repair Stations . | . . . . . Recycling Units . | . . . . . Scanalyzers . | . . . . . Garrison Access . | . . . . . Terminal Hacks . | . . . . . Fabricator Hacks . | . . . . . Repair Station Hacks . | . . . . . Recycling Unit Hacks . | . . . . . Scanalyzer . | . . . . . Garrison Access Hacks . | . . . . . Unauthorized Hacks . | . . . . . Terminals . | . . . . . Fabricators . | . . . . . Repair Stations . | . . . . . Recycling Units . | . . . . . Scanalyzers . | . . . . . Garrison Access . | . . . . . Data Cores Recovered . | . . . . . Used . | . . . . . Hacking Detections . | . . . . . Full Trace Events . | . . . . . Feedback Events . | . . . . . Feedback Blocked . | . . . . . Robot Schematics Acquired . | . . . . . Robots Built . | . . . . . Authchips . | . . . . . Time . | . . . . . Total Robot Build Rating . | . . . . . Part Schematics Acquired . | . . . . . Parts Built . | . . . . . Authchips . | . . . . . Time . | . . . . . Total Part Build Rating . | . . . . . Parts Repaired . | . . . . . Time . | . . . . . Parts Recycled . | . . . . . Recycled Matter . | . . . . . Retrieved Matter . | . . . . . Retrieved Components . | . . . . . Parts Scanalyzed . | . . . . . Part Schematics Acquired . | . . . . . Parts Damaged . | . . . . . Bothacking | -11 -10 -10 -9 -8 ------------ Run | Yrd Mat Min Mat Mat Used RIF Installer . | . . . . . Robots Hacked . | . . . . . Non-combat . | . . . . . Combat . | . . . . . Robot Hacks Applied . | . . . . . Relay Couplers Released . | . . . . . Fabnet Peak Effective % . | . . . . . Robots Rewired . | . . . . . Allies Hacked . | . . . . . Hacks Repelled . | . . . . . Allies | -11 -10 -10 -9 -8 -------- Run | Yrd Mat Min Mat Mat Total Allies 3 | . . 3 . . Largest Group 3 | . . 3 3 . Highest-Rated Group 40 | . . 40 40 . Highest-Rated Ally 16 | . . 16 16 . Total Orders . | . . . . . Ally Attacks 51 | . . . 51 . Total Damage 579 | . . . 579 . Kills 8 | . . . 8 . Allies Corrupted . | . . . . . Allies Melted . | . . . . . Intel | -11 -10 -10 -9 -8 ------- Run | Yrd Mat Min Mat Mat Robot Analysis Total . | . . . . . Derelict Logs Recovered . | . . . . . Drone Launches . | . . . . . Drone Recoveries . | . . . . . Exploration | -11 -10 -10 -9 -8 ------------- Run | Yrd Mat Min Mat Mat Turns Passed 1574 | 265 83 234 875 117 Spaces Moved 743 | 142 48 146 322 85 Core 50 | 35 . . 15 . Treads 581 | 107 48 146 280 . Legs . | . . . . . Wheels 112 | . . . 27 85 Hover . | . . . . . Flight . | . . . . . Fastest Speed 50 | 50 160 160 90 90 Average Speed 152 | 143 160 160 165 102 Slowest Speed 450 | 200 160 160 450 105 Overloaded Moves . | . . . . . Propulsion Burnouts . | . . . . . Robots Hopped . | . . . . . Cave-ins Triggered . | . . . . . Exploration Rate (%) 21 | 8 13 44 33 10 Regions Visited 4 Branch Regions 1 Pre-discovered Areas . | . . . . . Known Exits Taken . | . . . . . Unknown Exits Taken 4 | 1 1 1 1 . Scrap Searched . | . . . . . Spaces Dug . | . . . . . Terrain Destroyed 9 | . . . 9 . Melee . | . . . . . Projectile . | . . . . . AOE 9 | . . . 9 . Terrain Rammed . | . . . . . Walls Destroyed . | . . . . . Machines Disabled . | . . . . . Actions | -11 -10 -10 -9 -8 --------- Run | Yrd Mat Min Mat Mat Total 1039 | 171 50 147 569 102 Wait 174 | 1 . 2 168 3 Move 739 | 141 47 145 321 85 Hop . | . . . . . Pick Up 15 | 7 1 . 3 4 Fast Attach 13 | 6 . . 7 . Attach 6 | 1 . . 5 . Detach . | . . . . . Swap 5 | . . . 3 2 Drop 3 | . . . 3 . Fire 62 | 15 2 . 45 . Melee 8 | . . . . 8 Ram . | . . . . . Kick . | . . . . . Crush 14 | . . . 14 . Escape Stasis . | . . . . . Rewire . | . . . . . Trap . | . . . . . Miscellaneous . | . . . . . Route ------- -11/Scrapyard -10/Materials -10/Mines -9/Materials -8/Materials History --------- Turn | Location | Event 5 | -11/Scrapyard | Discovered new exit (range 15) 266 | -11/Scrapyard | Entered Materials 305 | -10/Materials | Build established: Mutant 325 | -10/Materials | Discovered new exit (range 7) 349 | -10/Materials | Entered Mines 481 | -10/Mines | Assisted by bots powering up and referring to "LRC-V3" 561 | -10/Mines | Discovered new exit (range 15) 583 | -10/Mines | Entered Materials 583 | -9/Materials | Accompanied by 3 allies 583 | -9/Materials | Evolved 2 slots: Utility x2 1345 | -9/Materials | Core integrity fell below 50% 1384 | -9/Materials | Lost 7 parts (1p2n1u3w) 1426 | -9/Materials | Discovered new exit (range 15) 1458 | -9/Materials | Entered another Materials area 1458 | -8/Materials | Evolved 2 slots: Propulsion x2 1575 | -8/Materials | Self-destructed Last Messages --------------- 01448_ The floor emits a surge of raw power. 01448_ System corrupted (+2). 01449_ System corrupted: Matter fused (-9). 01452_ O-16 Technician: "IFF HANDSHAKE FAILED. SECURING TERMINAL." 01458_ ALERT: Hostiles spotted, dispatching reinforcements to Terminal M009. PARAMETERS=PROPULSION+2 LOCATION=UNKNOWN GOAL=ESCAPE 01470_ Acquired Particle Cannon. 01491_ Acquired Insulated Plating. 01499_ Acquired Flak Cannon. 01526_ Acquired Scythe. 01549_ S-10 Pest destroyed. 01549_ Lgt. Armor Plating destroyed. 01558_ S-10 Pest destroyed. 01561_ G-47 Trooper Aluminum Leg severed. 01571_ G-47 Trooper destroyed. 01574_ Acquired 10 matter. 01575_ O-16 Technician: "IFF HANDSHAKE FAILED. SECURING TERMINAL." Map ----- +----------------------------------------------------+ | | | | | | | | | | | | | | | | | | | | | ######?#???#??#??????#???????????????????????????? | | !###??########??##?????##????????????????????? | | ###??# #?##??????##?#??????????????????? | | ###### [/#?#???#??##????#????????????????? | | + # ##??#???##????#?????????????????? | | # # #??##?#???###??#??? ????????????? | | ###### # ##??#?????????#??? ?????????????? | | + #??#??##?#?????? ??????????????? | | ########+#####+##???#??###?##???+?#??+??????????? | | #???#? ? ?# ###????###???#???????? ??????????? | | ######? ?# #?#?????#???#?#?#???? ???????????? | | #?? ??# ##??#???#????????????????????????? | | ""##? ?# ###############?????? ???????????? | | ""### ## ## # [ ### o ??????????? | | T"### # + """ [#[ g* g ??????????? | | ""########## # """ =/@=T "Y????????????? | | ""#?##? + """ =#% ""????????????? | | ##?#### # # # a ########???????????? | | #?#?# #### ^ # ! ###s######???????????????? | | ##?#####?# ########??a#??????#?????????????? | | ######???##??# #???#?##?? #????????????????????? | | ?#??#?#?#???## ###????#?????????#?#????????????? | | ??????? ????# #????##????#???? ?? ????????????? | | ?? ???#???? ?# #?#?#???#??????????"????????????? | | ???????? ?? # #?##?????????????"??????????????? | | ???????? ??? # ????? ?? ?????????????????????? | | ???????? ????# #?##???#? ??????????????????????? | | ???????##??### ?? ??##??#???#????????????????? | | ?? ? ????????# ?????????????????#??????????????? | | ?? ??????????# ?? ?????#?#?????????????????????? | | ????? ????? # ??? ??????? ???????????????????? | | ??????????????????????????##?????????????????????? | | ??? ?????????????????????????????????????????????? | | ?????????????????????????????????????????????????? | | ?????????????????????????????????????????????????? | | ?????????????????????????????????????????????????? | | ?????????????????????????????????????????????????? | | ?????????????????????????????????????????????????? | | ?????????????????????????????????????????????????? | | ?????????????????????????????????????????????????? | +----------------------------------------------------+ Best States ------------- Heat Dissipation 38 Energy Generation 14 Energy Capacity 275 Matter Stores 300 Matter Capacity 300 Sight Range 16 Terrain Scan Range 16 Terrain Scan Density 85 Armor Coverage 150 Evasion (%) 50 Recoil Reduction 2 Item Schematics ----------------- None Robot Schematics ------------------ None Fabricated ------------ Nothing Alien Tech Used ----------------- None Achievements -------------- None Challenges ------------ None Game ------ Seed TeleporterThiefAutobeam Manual? 0 Play Time 00:11:47 Cumulative 14.8 hours Start 2025.01.07 @ 21:20:25 End 2025.01.07 @ 21:32:16 Sessions 1 Manual Loads 0 Difficulty Rogue Special Mode None Game No. 42 Rogue 42 Adventurer 0 Explorer 0 Win Type - Total 0 Types 0/0/0/0/0/0/0/0/0 Lore% 5 Gallery% 23 Achievement% 19 Wizard Run 0 Options --------- Layout 0 ASCII 0 Keyboard 0 Movement Numpad Keybinds 0 Fullscreen 2 Font 18/Terminus Map View 76x50 Zoom Use 0% Tactical HUD 1 Map Filters NONE Filters NONE Steam 1 RUN: cc551979-7d2e-472f-be0c-9ffa85ceb5f2